Cogmind - Beta 16.1 @@@ ROGUE MODE // 2026.04.08 @ 14:39:25 Player: Maelyn Result: Destroyed by G-47 Trooper with Particle Gun Performance ------------- Evolutions (2) 1000 Regions Visited (4) 800 Robots Destroyed (17) 85 Value Destroyed (291) 291 Prototype IDs (0) 0 Alien Tech Used (0) 0 Bonus (0) 0 TOTAL SCORE: 2176 Bonus ------- None Cogmind --------- Core Integrity 0/550 Matter 86/300 Energy 100/100 System Corruption 0% Temperature Cool (10) Movement Hovering (180) Ox2 Location -8/Materials Parts ------- > --- POWER (1) -------- (None) > --- PROPULSION (3) --- Airjet > --- UTILITY (5) ------ Large Storage Unit > --- WEAPON (2) ------- (None) > --- INVENTORY (15) --- Light Assault Rifle Peak State ------------ > --- POWER ------------ Ion Engine > --- PROPULSION ------- Light Treads Light Treads > --- UTILITY ---------- Large Storage Unit Improved Terrain Scanner > --- WEAPON ----------- Assault Rifle Assault Rifle > --- INVENTORY -------- Light Ion Engine Light Ion Engine Light Ion Engine Aluminum Leg Aluminum Leg Hover Unit Hover Unit EM Pulse Gun Light Assault Rifle Light Assault Rifle [Rating: 10] Favorites ----------- Power Ion Engine Engine Ion Engine Propulsion Light Treads Treads Light Treads Leg Aluminum Leg Hover Unit Hover Unit Utility Improved Terrain Scanner Device Improved Terrain Scanner Storage Large Storage Unit Weapon Assault Rifle Energy Gun EM Pulse Gun Ballistic Gun Assault Rifle Build | -11 -10 -10 -10 -8 ------- Run | Yrd Mat Min Sub Mat Slots Evolved 4 | . . . . 4 Power . | . . . . . Propulsion 1 | . . . . 1 Utility 3 | . . . . 3 Weapon . | . . . . . Parts Attached 22 | 9 1 . . 12 Power 4 | 1 . . . 3 Engine 4 | 1 . . . 3 Core . | . . . . . Reactor . | . . . . . Propulsion 8 | 3 . . . 5 Treads 2 | 2 . . . . Leg 3 | 1 . . . 2 Wheel . | . . . . . Hover 3 | . . . . 3 Flight . | . . . . . Utility 4 | 3 1 . . . Device 2 | 2 . . . . Storage 2 | 1 1 . . . Processor . | . . . . . Hackware . | . . . . . Protection . | . . . . . Artifact . | . . . . . Weapon 6 | 2 . . . 4 Energy Gun 1 | . . . . 1 Energy Cannon . | . . . . . Ballistic Gun 5 | 2 . . . 3 Ballistic Cannon . | . . . . . Launcher . | . . . . . Special Weapon . | . . . . . Impact Weapon . | . . . . . Slashing Weapon . | . . . . . Piercing Weapon . | . . . . . Special Melee Weapon . | . . . . . Unidentified Prototypes . | . . . . . Parts Lost 16 | . . . . 16 Power 4 | . . . . 4 Propulsion 6 | . . . . 6 Utility 1 | . . . . 1 Weapon 5 | . . . . 5 Highest Loss Streak 8 | . . . . 8 To Critical Strikes . | . . . . . Average Backups 7 | 4 6 10 11 7 Power 2 | 1 3 3 3 2 Propulsion 2 | 1 2 4 4 2 Utility . | . . . . . Weapon 2 | 1 1 3 4 2 Tool/Special . | . . . . . Unused Backups 1 | . . . . 1 Power . | . . . . . Propulsion 1 | . . . . 1 Utility . | . . . . . Weapon . | . . . . . Tool/Special . | . . . . . Average Slot Usage (%) 78 | . 100 100 100 44 Engine 11 | . 14 14 14 7 Treads 18 | . 28 28 28 4 Leg 1 | . . . . 2 Hover 1 | . . . . 4 Device 9 | . 14 14 14 3 Storage 12 | . 14 14 14 9 Ballistic Gun 21 | . 28 28 28 11 Peak Build Rating 10 | 9 9 10 10 10 Average Rating 8 | 7 9 9 10 6 On Entrance 7 | . 9 9 10 10 Avg Prop Armor Cover (%) . | . . . . . Naked Turns . | . . . . . Heaviest Build 30 | 15 30 30 30 28 Greatest Support 40 | 40 40 40 40 40 Greatest Overweight (x) 8 | . . . . 8 Average Overweight (x) . | . . . . 2 Largest Inventory Capacity 15 | 8 15 15 15 15 Average Capacity 12 | 7 10 15 15 15 Most Carried 11 | 8 8 11 11 11 Average Carried 7 | 4 6 10 11 7 Final Capacity 15 | 8 15 15 15 15 Final Carried 11 | 6 8 11 11 1 Class Distribution -------------------- 100% | Mutant Dominant Class ---------------- Mutant | -10/Materials Mutant | -10/Mines Mutant | -10/Subcaves Mutant | -8/Materials Resources | -11 -10 -10 -10 -8 ----------- Run | Yrd Mat Min Sub Mat Matter Collected 430 | 326 . 75 29 . Remotely . | . . . . . Salvage Created 531 | 238 . 74 . 219 Parts 42 | 21 . 8 . 13 Haulers Intercepted . | . . . . . Recyclers Shooed 1 | . . . . 1 Parts Field Recycled . | . . . . . Retrieved Matter . | . . . . . Parts Self-Destructed . | . . . . . Prevented . | . . . . . Parts Restored . | . . . . . Kills | -11 -10 -10 -10 -8 ------- Run | Yrd Mat Min Sub Mat Combat Hostiles Destroyed 9 | . . 5 . 4 Guns 8 | . . 5 . 3 AOE 1 | . . . . 1 Classes Destroyed 6 | 2 . 1 . 3 Tunneler 7 | 7 . . . . Recycler 1 | 1 . . . . Swarmer 5 | . . 5 . . Grunt 2 | . . . . 2 Duelist 1 | . . . . 1 Sentry 1 | . . . . 1 Best Kill Streak 5 | 4 . 5 . 2 Combat Bots Only 5 | . . 5 . 2 Max Kills in Single Turn 1 | 1 . 1 . 1 Gunslinging . | . . . . . Exploded 1 | . . . . 1 Melee . | . . . . . Uniques/NPCs Destroyed . | . . . . . Combat | -11 -10 -10 -10 -8 -------- Run | Yrd Mat Min Sub Mat Hostile Shots Fired 175 | . 2 24 3 146 Missed 44 | . . 8 1 35 Hits 131 | . 2 16 2 111 Melee 10 | . . . . 10 Projectile 121 | . 2 16 2 101 Critical Strikes 8 | . . . . 8 Damage Taken 2128 | . 22 124 77 1905 Core 600 | . . 20 30 550 Absorbed by Shields . | . . . . . Core Remaining (%) 90 | 100 . . 80 . Volleys Fired 63 | 18 . 8 . 37 Largest 2 | 2 . 2 . 2 Hottest 60 | 40 . 40 . 60 Shots Fired 103 | 36 . 16 . 51 Gun 103 | 36 . 16 . 51 Cannon . | . . . . . Launcher . | . . . . . Special . | . . . . . Kinetic 94 | 36 . 16 . 42 Thermal . | . . . . . Explosive . | . . . . . Electromagnetic 9 | . . . . 9 Robot Hit Streak 16 | 10 . 4 . 16 Robot Miss Streak 3 | 3 . 3 . 2 Penetration Max . | . . . . . Secondary Targets 1 | . . 1 . . Max Gunslinging Chain 1 | . . 1 . . Shots Hit Robots 68 | 21 . 9 . 38 Core Hits 27 | 9 . 5 . 13 Critical Kills . | . . . . . Critical Parts Destroyed . | . . . . . Critical Strikes 1 | . . . . 1 Corrupt 1 | . . . . 1 Melee Attacks . | . . . . . Impact . | . . . . . Slashing . | . . . . . Piercing . | . . . . . Sneak Attacks . | . . . . . Combat Hostiles . | . . . . . Follow-up Attacks . | . . . . . Damage Inflicted 854 | 265 . 113 . 476 Guns 790 | 265 . 113 . 412 Cannons . | . . . . . Explosions 64 | . . . . 64 Melee . | . . . . . Ramming . | . . . . . Kinetic 712 | 265 . 113 . 334 Thermal 64 | . . . . 64 Explosive . | . . . . . Electromagnetic 78 | . . . . 78 Impact . | . . . . . Slashing . | . . . . . Piercing . | . . . . . Highest Corruption . | . . . . . Average Corruption . | . . . . . Corruption Purged . | . . . . . Corruption Blocked . | . . . . . Overload Shots . | . . . . . Overflow Damage . | . . . . . Projectiles . | . . . . . Explosions . | . . . . . Melee . | . . . . . Knockbacks . | . . . . . Impact . | . . . . . Kinetic . | . . . . . Secondary . | . . . . . Self-Inflicted Damage . | . . . . . Shots . | . . . . . Rammed . | . . . . . Targets Rammed . | . . . . . Kicked . | . . . . . Crushed . | . . . . . Highest Temperature 22 | . . . . 22 Average Temperature 6 | . . . . 6 Received Heat Transfer 948 | . 12 . 18 918 Siege Activations . | . . . . . Martial Activations . | . . . . . Shielding Activations . | . . . . . Robots Disrupted . | . . . . . Combat Hostiles . | . . . . . Robots Corrupted . | . . . . . Combat Hostiles . | . . . . . Parts Fried . | . . . . . Impact Corruptions . | . . . . . Robots Melted . | . . . . . Combat Hostiles . | . . . . . Parts Melted . | . . . . . Heat Transferred 50 | . . . . 50 Parts Sabotaged . | . . . . . Parts Stolen . | . . . . . Parts Stripped . | . . . . . Power Chain Reactions 1 | . . . . 1 Alert | -11 -10 -10 -10 -8 ------- Run | Yrd Mat Min Sub Mat Maximum Alert Level . | . . . . . Low Security (%) 100 | 100 100 100 . 100 Level 1 . | . . . . . Level 2 . | . . . . . Level 3 . | . . . . . Level 4 . | . . . . . Level 5 . | . . . . . High Security . | . . . . . Max Security . | . . . . . Peak Influence 110 | 10 . 110 . 85 Initial . | . . . . . Average 18 | 1 . 76 . 22 Influence Increases 350 | 40 . 120 . 190 Destroy 0b10 Robot/C 180 | . . 100 . 80 Destroy 0b10 Robot/NC 40 | 40 . . . . Destroy Leader 50 | . . 20 . 30 Destroy Structure 5 | . . . . 5 Lose Combat Pursuer 75 | . . . . 75 Influence Decreases 350 | 40 . 50 70 190 Entered New Map 37 | . . . 37 . Time Decay 198 | 40 . 50 33 75 Lost Part 115 | . . . . 115 Squads Dispatched 1 | . . . . 1 Investigation . | . . . . . Extermination . | . . . . . Reinforcement 1 | . . . . 1 Assault . | . . . . . Garrison . | . . . . . Intercept . | . . . . . Searches Triggered . | . . . . . Construction Impeded . | . . . . . Haulers Reinforced . | . . . . . Active Scanning Responses . | . . . . . Cargo Convoy Interrupts . | . . . . . Stealth | -11 -10 -10 -10 -8 --------- Run | Yrd Mat Min Sub Mat Distress Signals 2 | . . . . 2 Communications Jammed . | . . . . . Distress Signals . | . . . . . Times Spotted 25 | . 2 6 1 16 Peak Tracking Total 7 | . 3 3 1 7 Tactical Retreats 2 | . . . . 2 Traps | -11 -10 -10 -10 -8 ------- Run | Yrd Mat Min Sub Mat Traps Triggered . | . . . . . Indirectly . | . . . . . Trap Hack Attempts . | . . . . . Triggered . | . . . . . Disarmed . | . . . . . Reprogrammed . | . . . . . Reused . | . . . . . Traps Extracted . | . . . . . Installed . | . . . . . Triggered . | . . . . . Machines | -11 -10 -10 -10 -8 ---------- Run | Yrd Mat Min Sub Mat Machines Disabled . | . . . . . Max in Single Turn . | . . . . . Machines Repaired . | . . . . . Machines Dismantled . | . . . . . Machines Sabotaged . | . . . . . Overloaded Fab Kills . | . . . . . Hacking | -11 -10 -10 -10 -8 --------- Run | Yrd Mat Min Sub Mat Machines Accessed . | . . . . . Terminals . | . . . . . Fabricators . | . . . . . Repair Stations . | . . . . . Recycling Units . | . . . . . Scanalyzers . | . . . . . Garrison Access . | . . . . . Total Hacks . | . . . . . Successful . | . . . . . Failed . | . . . . . Catastrophic . | . . . . . Database Lockouts . | . . . . . Manual . | . . . . . Terminals . | . . . . . Fabricators . | . . . . . Repair Stations . | . . . . . Recycling Units . | . . . . . Scanalyzers . | . . . . . Garrison Access . | . . . . . Terminal Hacks . | . . . . . Fabricator Hacks . | . . . . . Repair Station Hacks . | . . . . . Recycling Unit Hacks . | . . . . . Scanalyzer . | . . . . . Garrison Access Hacks . | . . . . . Unauthorized Hacks . | . . . . . Terminals . | . . . . . Fabricators . | . . . . . Repair Stations . | . . . . . Recycling Units . | . . . . . Scanalyzers . | . . . . . Garrison Access . | . . . . . Data Cores Recovered . | . . . . . Used . | . . . . . Hacking Detections . | . . . . . Full Trace Events . | . . . . . Feedback Events . | . . . . . Feedback Blocked . | . . . . . Robot Schematics Acquired . | . . . . . Robots Built . | . . . . . Authchips . | . . . . . Time . | . . . . . Total Robot Build Rating . | . . . . . Part Schematics Acquired . | . . . . . Parts Built . | . . . . . Authchips . | . . . . . Time . | . . . . . Total Part Build Rating . | . . . . . Part Studies Acquired . | . . . . . Parts Repaired . | . . . . . Time . | . . . . . Parts Recycled . | . . . . . Recycled Matter . | . . . . . Retrieved Matter . | . . . . . Retrieved Components . | . . . . . Parts Scanalyzed . | . . . . . Part Schematics Acquired . | . . . . . Parts Damaged . | . . . . . Bothacking | -11 -10 -10 -10 -8 ------------ Run | Yrd Mat Min Sub Mat Used RIF Installer . | . . . . . Robots Hacked . | . . . . . Non-combat . | . . . . . Combat . | . . . . . Robot Hacks Applied . | . . . . . Relay Couplers Released . | . . . . . Fabnet Peak Effective % . | . . . . . Robots Rewired . | . . . . . Allies Hacked . | . . . . . Hacks Repelled . | . . . . . Allies | -11 -10 -10 -10 -8 -------- Run | Yrd Mat Min Sub Mat Total Allies . | . . . . . Largest Group . | . . . . . Highest-Rated Group . | . . . . . Highest-Rated Ally . | . . . . . Total Orders . | . . . . . Ally Attacks . | . . . . . Total Damage . | . . . . . Kills . | . . . . . Allies Corrupted . | . . . . . Allies Melted . | . . . . . Intel | -11 -10 -10 -10 -8 ------- Run | Yrd Mat Min Sub Mat Active Infowar (turns) 729 | 208 115 115 197 94 Terrain 729 | 208 115 115 197 94 Robot Analysis Total . | . . . . . Derelict Logs Recovered . | . . . . . Drone Launches . | . . . . . Drone Recoveries . | . . . . . Exploration | -11 -10 -10 -10 -8 ------------- Run | Yrd Mat Min Sub Mat Turns Passed 1015 | 301 115 115 197 287 Spaces Moved 485 | 151 71 56 123 84 Core 21 | 11 . . . 10 Treads 398 | 127 71 56 123 21 Legs 21 | 13 . . . 8 Wheels . | . . . . . Hover 45 | . . . . 45 Flight . | . . . . . Fastest Speed 50 | 50 160 160 160 116 Average Speed 165 | 148 160 160 160 211 Slowest Speed 450 | 160 160 160 160 450 Overloaded Moves . | . . . . . Propulsion Burnouts . | . . . . . Robots Hopped . | . . . . . Potential Cave-ins . | . . . . . Cave-ins Triggered . | . . . . . Exploration Rate (%) 11 | 5 21 10 10 10 Regions Visited 4 Branch Regions 2 Pre-discovered Areas . | . . . . . Known Exits Taken . | . . . . . Unknown Exits Taken 4 | 1 1 1 1 . Scrap Searched . | . . . . . Spaces Dug . | . . . . . Terrain Destroyed 4 | . . . . 4 Melee . | . . . . . Projectile . | . . . . . AOE 4 | . . . . 4 Terrain Rammed . | . . . . . Walls Destroyed . | . . . . . Machines Disabled . | . . . . . Actions | -11 -10 -10 -10 -8 --------- Run | Yrd Mat Min Sub Mat Total 600 | 190 74 66 124 146 Wait . | . . . . . Move 481 | 150 70 55 122 84 Hop . | . . . . . Pick Up 22 | 12 2 3 1 4 Fast Attach 2 | 2 . . . . Attach 18 | 5 . . . 13 Detach . | . . . . . Swap 10 | 2 1 . . 7 Drop 4 | 1 1 . 1 1 Fire 63 | 18 . 8 . 37 Melee . | . . . . . Ram . | . . . . . Kick . | . . . . . Crush . | . . . . . Escape Stasis . | . . . . . Rewire . | . . . . . Trap . | . . . . . Miscellaneous . | . . . . . Route ------- -11/Scrapyard -10/Materials -10/Mines -10/Subcaves -8/Materials History --------- Turn | Location | Event 10 | -11/Scrapyard | Discovered new exit (range 14) 302 | -11/Scrapyard | Entered Materials 321 | -10/Materials | Build established: Mutant 338 | -10/Materials | Discovered new exit (range 13) 417 | -10/Materials | Entered Mines 468 | -10/Mines | Discovered new exit (range 9) 503 | -10/Mines | Assembled infested the area 532 | -10/Mines | Entered Subcaves 533 | -10/Subcaves | Approached by a straggling Scientist 555 | -10/Subcaves | Discovered new exit (range 11) 729 | -10/Subcaves | Entered Materials 729 | -8/Materials | Evolved 4 slots: Propulsion x1, Utility x3 927 | -8/Materials | Lost 8 parts (1p3n1u3w) 951 | -8/Materials | Core integrity fell below 50% 978 | -8/Materials | Core integrity fell below 20% 1016 | -8/Materials | Destroyed by G-47 Trooper with Particle Gun Last Messages --------------- 00954_ G-47 Trooper destroyed. 00957_ Aluminum Leg destroyed. 00958_ W-25 Informer sends out distress signal. 00962_ EM Pulse Gun destroyed. 00964_ U-05 Engineer builds a Wall. 00964_ Critical hit (Burn: +37). 00969_ U-05 Engineer builds a Door. 00970_ Aluminum Leg destroyed. 00973_ U-05 Engineer lays Concrete. 00974_ Critical hit (Burn: +37). 00975_ U-05 Engineer lays Concrete. 00978_ U-05 Engineer builds a Wall. 00981_ Lgt. Ion Engine destroyed. 00981_ Critical hit (Burn: +37). 00982_ U-05 Engineer lays Concrete. 00983_ Processing Tank disabled. 00994_ Hover Unit destroyed. 00999_ Lgt. Ion Engine destroyed. 01015_ R-06 Scavenger collects Hvy. Assault Rifle. Map ----- +----------------------------------------------------+ | ?????????????????????????????????????????????????? | | ?????????????????????????????????????????????????? | | ?????????????????????????????????????????????????? | | ?????????????????????????????????????????????????? | | ?????????????????????????????????????????????????? | | ?????????????????????????????????????????????????? | | ?????????????????????????????????????????????????? | | ?????????????????????#???????????????????????????? | | ????????????????????? ???????????????????????????? | | ???????????????????"" ???????????????????????????? | | ???????????????????R" ???????????????????????????? | | ???????????????????"" ???????????????????????????? | | ???????????????? ???????????????????????????? | | ???????????????? [???????????????????????????? | | ????????????????| ???#???????????????????????? | | #??#????????????#+#???????????????????????????? | | #???????????????# ###########?????????????????? | | #???#?????#?????# ## #?????????????????? | | ???????????????# ## """ #?????????????????? | | #???#??????######/## "T" #?????????????????? | | #??#??#?#???# # #?????????????????? | | #????#??????# !! # #?????????????????? | | #???#????#??# !!= # "" " #?????????????????? | | #???????????# !!% ; """""g#?????????????????? | | #????????##?# !!w=# g""" " #?????????????????? | | #???????????# ==% =; @ g #?????????????????? | | #################r####/####### ??????????????? | | %![ " ?????????????? | | ########## "%" ?????????????? | | ####????????# " ?????????????? | | ??#??##########+####+#########/##! ??????????????? | | ????## T # ??????????#???????????????? | | ?????# """ """ # """ #????????????????????????? | | ?????# """ """ # """ #??? ????????????????????? | | ???#?# """ """ # """ #? ??????????????????????? | | ?#???# # #????????????????????????? | | ?????# ] # # ???????????????????????? | | #???## ########??#?????????????????????? | | ?????#############???????????????????????????????? | | | | | | | | | | | | | | | | | | | | | | | +----------------------------------------------------+ Best States ------------- Heat Dissipation 31 Energy Generation 10 Energy Capacity 250 Matter Stores 274 Matter Capacity 300 Sight Range 16 Terrain Scan Range 16 Terrain Scan Density 10 Evasion (%) 55 Recoil Reduction 2 Item Schematics ----------------- None Robot Schematics ------------------ None Fabricated ------------ Nothing Repaired ---------- Nothing Studied --------- None Alien Tech Used ----------------- None Achievements -------------- None Challenges ------------ None Game ------ Seed LayeredGyrokineticAutocannon Manual? 0 Play Time 00:09:02 Cumulative 19.3 hours Start 2026.04.08 @ 14:30:45 End 2026.04.08 @ 14:39:25 Sessions 1 Manual Loads 0 Difficulty Rogue Special Mode None Game No. 54 Rogue 54 Adventurer 0 Explorer 0 Win Type - Total 0 Types 0/0/0/0/0/0/0/0/0/0 Lore% 10 Gallery% 20 Achievement% 11 Wizard Run 0 Options --------- Layout 2 ASCII 0 Keyboard 0 Movement Mouse Keybinds 0 Fullscreen 1 Font 24/Crisp Map View 50x44 Zoom Use 0% Tactical HUD 1 Map Filters NONE Filters NONE Steam 1 RUN: 02cf5afe-cae9-41e6-8d26-05cdab0fc3b8